Cogmind - Beta 17.1 @@@ ROGUE MODE // 2026.09.22 @ 21:45:24 Player: Kite Result: Self-destructed Performance ------------- Evolutions (8) 4000 Regions Visited (29) 5800 Robots Destroyed (404) 2020 Value Destroyed (16593) 16593 Prototype IDs (217) 4340 Alien Tech Used (3) 600 Bonus (15209) 15209 TOTAL SCORE: 48562 Bonus ------- High Alert Combat Kills 1186 Follower Combat Kills 1324 Entered Garrisons 1000 Used RIF Installer 2500 Network Hubs Disabled 400 Met Data Miner 300 Used Data Conduit 3000 MAIN.C Attacked Proxy Base 500 Met R17 at Cetus 500 Used Core Reset Matrix 3000 Met R17 at Research 2000 Friendly Fire -501 Cogmind --------- Core Integrity 920/1450 Matter 21/300 Energy 97/100 System Corruption 12% Temperature Cool (0) Movement Walking (190) Ox1 Location -2/Quarantine Parts ------- > --- POWER (3) -------- Backup Power I Backup Power I > --- PROPULSION (6) --- Enhanced Flexi-carbon Leg Enhanced Armored Leg Enhanced Armored Leg Centrium Leg > --- UTILITY (10) ----- Huge Storage Unit Advanced Melee Analysis Suite Improved System Shield > --- WEAPON (4) ------- (None) > --- INVENTORY (25) --- Advanced Heavy Siege Treads High-density Centrium Heavy Treads Large Storage Unit Advanced Energy Well (500) Matter Compressor (0) Actuator Array Actuator Array Improved Hacking Suite Relay Coupler [Swarmer] (41) Relay Coupler [Hunter] (22) High-powered Transdimensional Reconstructor Nova Cannon Core Cannon Hellfire Missile Launcher Hellfire Missile Launcher Improved Remote Datajack Peak State ------------ > --- POWER ------------ Particle Reactor Particle Reactor Micro Antimatter Reactor > --- PROPULSION ------- Thunder Leg Enhanced Armored Leg Heavy Armored Exoskeleton > --- UTILITY ---------- Huge Storage Unit Experimental Terrain Scanner Advanced Melee Analysis Suite Advanced Transmission Jammer Centrium Medium Armor Plating Improved System Shield Ghost Barrier Relay Coupler [NC] Relay Coupler [Sentry] Relay Coupler [Hunter] > --- WEAPON ----------- Hellfire Missile Launcher Improved Remote Datajack Greatsword > --- INVENTORY -------- Particle Reactor Flexi-carbon Leg Enhanced Flexi-carbon Leg Enhanced Armored Leg Enhanced Armored Leg Biometal Leg Large Storage Unit Advanced Energy Well Matter Compressor Actuator Array Actuator Array Improved Hacking Suite Relay Coupler [NC] Relay Coupler [Swarmer] Relay Coupler [Hunter] Hellfire Missile Launcher Hellfire Missile Launcher Greatsword Greatsword [Rating: 158] Favorites ----------- Power Antimatter Reactor Engine Angular Momentum Engine Power Core Neutrino Core Reactor Antimatter Reactor Propulsion Improved Medium Treads Treads Improved Medium Treads Leg Myomer Leg Wheel Armored Wheel Utility Huge Storage Unit Device Actuator Array Storage Huge Storage Unit Processor Improved Signal Interpreter Hackware Relay Coupler [NC] Protection Centrium Medium Armor Plating Weapon Spear Energy Gun Medium Laser Energy Cannon Advanced Beam Cannon Ballistic Gun Advanced KE Penetrator Ballistic Cannon Flak Cannon Launcher Tesla Bomb Launcher Special Weapon Remote Datajack Impact Weapon Heavy Hammer Slashing Weapon Blade Saw Piercing Weapon Spear Special Melee Weapon Advanced Datajack Build | -11 -10 -9 -8 -8 -8 -8 -7 -7 -7 -7 -7 -7 -6 -6 -6 -6 -6 -5 -5 -5 -5 -5 -5 -5 -4 -3 -3 -2 -2 ------- Run | Yrd Mat Mat Mat Gar Mat Gar Fac Was Fac Low Low Dat Pro Fac Gar Fac Gar Fac Was Fac Ext Cet Arc Hub Fac Res Gar Res Qua Slots Evolved 16 | . . 2 2 . . . 2 . . . . . . 2 . . . 2 . . . . . . 2 2 . 2 . Power 2 | . . . . . . . . . . . . . . . . . . 1 . . . . . . . 1 . . . Propulsion 4 | . . 1 1 . . . 1 . . . . . . . . . . 1 . . . . . . . . . . . Utility 8 | . . 1 . . . . . . . . . . . 2 . . . . . . . . . . 2 1 . 2 . Weapon 2 | . . . 1 . . . 1 . . . . . . . . . . . . . . . . . . . . . . Parts Attached 277 | 7 10 25 1 9 18 17 17 14 6 6 1 9 10 1 7 3 9 3 8 3 10 12 11 1 7 32 4 13 3 Power 37 | 1 1 2 . 1 2 1 3 2 . 1 . 2 . . 1 . 1 1 2 . 3 1 1 . . 11 . . . Engine 18 | 1 1 2 . 1 2 1 3 . . 1 . . . . . . 1 1 . . 1 . . . . 3 . . . Core 2 | . . . . . . . . . . . . . . . . . . . . . 1 1 . . . . . . . Reactor 17 | . . . . . . . . 2 . . . 2 . . 1 . . . 2 . 1 . 1 . . 8 . . . Propulsion 88 | 2 3 8 1 2 4 8 8 2 . 3 . 5 3 . 2 . 2 1 4 1 2 3 1 1 7 10 1 4 . Treads 43 | 2 . . . 1 3 6 2 2 . 3 . 4 3 . 2 . 2 1 4 1 2 3 1 1 . . . . . Leg 23 | . . . . . . . . . . . . 1 . . . . . . . . . . . . 7 10 1 4 . Wheel 22 | . 3 8 1 1 1 2 6 . . . . . . . . . . . . . . . . . . . . . . Hover . | . . . . . . . . . . . . . . . . . . . . . . . . . . . . . . Flight . | . . . . . . . . . . . . . . . . . . . . . . . . . . . . . . Utility 88 | 1 4 5 . 3 4 4 6 7 2 1 1 1 4 1 3 3 6 1 2 2 2 4 7 . . 7 2 5 . Device 25 | . 1 1 . 3 1 . 3 2 1 . 1 1 . 1 . . . . . . 1 1 4 . . 3 . 1 . Storage 8 | 1 2 1 . . . . . 1 . . . . 1 . . . . . . . . . . . . 1 . 1 . Processor 5 | . . . . . 2 1 . . 1 . . . . . . . . . . . . . . . . . . 1 . Hackware 26 | . . . . . 1 2 2 2 . 1 . . . . 2 3 3 1 . . 1 . 2 . . 2 2 2 . Protection 24 | . 1 3 . . . 1 1 2 . . . . 3 . 1 . 3 . 2 2 . 3 1 . . 1 . . . Artifact . | . . . . . . . . . . . . . . . . . . . . . . . . . . . . . . Weapon 64 | 3 2 10 . 3 8 4 . 3 4 1 . 1 3 . 1 . . . . . 3 4 2 . . 4 1 4 3 Energy Gun 10 | 2 2 2 . . . . . . . . . . 2 . . . . . . . . 2 . . . . . . . Energy Cannon 8 | . . 6 . 1 . . . . . . . . . . . . . . . . . . . . . . . . 1 Ballistic Gun 6 | 1 . . . . 1 . . . . . . . . . . . . . . . . 2 2 . . . . . . Ballistic Cannon 1 | . . . . . 1 . . . . . . . . . . . . . . . . . . . . . . . . Launcher 9 | . . 1 . 2 . 1 . 2 1 . . . . . . . . . . . . . . . . . 1 1 . Special Weapon 4 | . . . . . . 1 . . . . . . . . . . . . . . . . . . . 2 . 1 . Impact Weapon 3 | . . . . . 1 . . . . . . . 1 . . . . . . . 1 . . . . . . . . Slashing Weapon 15 | . . 1 . . 1 1 . 1 3 1 . . . . 1 . . . . . 1 . . . . 1 . 2 2 Piercing Weapon 6 | . . . . . 3 1 . . . . . 1 . . . . . . . . 1 . . . . . . . . Special Melee Weapon 2 | . . . . . 1 . . . . . . . . . . . . . . . . . . . . 1 . . . Unidentified Prototypes 9 | . . 2 . . 2 . . 1 . . . . . . . . . . . . . 1 . . . 1 1 . 1 Corrupted Parts 9 | . . . . . . . . . . . . 1 2 . 1 . . . . . 1 3 1 . . . . . . System Corruption 61 | . . . . . . . . . . . . 15 13 . 6 . . . . . 8 18 1 . . . . . . Parts Lost 128 | . 3 4 . 4 2 18 11 . . 5 . 8 . . 4 1 3 . . . 4 7 . 11 8 10 3 17 5 Power 21 | . . . . 1 . 1 3 . . 1 . 2 . . 1 . 1 . . . 1 1 . 2 . 3 . 4 . Propulsion 53 | . 1 3 . 2 2 10 6 . . 2 . 4 . . 2 1 1 . . . . 3 . 3 2 5 . 4 2 Utility 20 | . . . . . . 2 2 . . . . . . . 1 . 1 . . . 1 . . 2 3 1 2 4 1 Weapon 34 | . 2 1 . 1 . 5 . . . 2 . 2 . . . . . . . . 2 3 . 4 3 1 1 5 2 Highest Loss Streak 11 | . 2 1 . 2 1 9 5 . . 4 . 5 . . 2 1 2 . . . 2 6 . 11 4 8 1 8 5 To Critical Strikes 5 | . . . . . . 1 . . . . . . . . . . . . . . 1 2 . . 1 . . . . Average Backups 20 | 2 10 24 24 24 24 22 23 20 20 19 21 20 21 21 20 20 21 21 22 18 17 19 20 20 17 18 21 19 15 Power . | . 1 1 1 . . . . . . . . . 1 1 . 1 . . . . . 1 1 1 1 1 1 . . Propulsion 4 | 1 5 11 8 8 8 3 . 1 2 1 3 3 . 1 1 2 4 4 3 4 3 1 1 1 2 4 6 5 2 Utility 10 | . 1 7 11 11 11 12 16 13 10 11 11 11 15 14 13 11 10 12 13 10 10 11 12 12 11 8 9 8 8 Weapon 3 | . 2 3 4 3 4 4 4 4 5 4 5 4 3 4 4 4 4 4 5 3 2 3 4 5 1 1 5 3 2 Tool/Special . | . . . . . . . . . . . . . . . . . . . . . . . . . . . . . . Unused Backups 94 | . 4 15 . 4 4 4 2 6 2 1 1 5 5 . 7 3 4 . 3 1 3 1 4 . . 3 1 . 11 Power 12 | . . 3 . . . . . . . . . . 1 . . 2 1 . 1 . 1 . 3 . . . . . . Propulsion 22 | . 2 6 . 1 1 1 . . . . . . 2 . 2 . 1 . 1 1 . . . . . 1 1 . 2 Utility 48 | . 1 5 . 3 3 3 2 5 2 1 1 2 1 . 5 1 2 . 1 . 2 1 1 . . . . . 6 Weapon 10 | . 1 1 . . . . . 1 . . . 3 1 . . . . . . . . . . . . 1 . . 2 Tool/Special 2 | . . . . . . . . . . . . . . . . . . . . . . . . . . 1 . . 1 Average Slot Usage (%) 85 | . 95 93 90 96 99 91 87 82 84 89 92 89 88 81 93 93 95 97 77 84 85 77 80 76 48 64 77 67 57 Engine 4 | . 14 11 9 8 9 8 2 . . 5 7 3 . . . . 2 8 9 5 3 . . . . 1 . . 6 Reactor 3 | . . . . . . . . 6 7 1 . 2 7 6 5 6 3 . 1 5 1 5 10 10 . 7 14 10 . Treads 18 | . 16 . . . 16 25 20 19 23 28 30 27 30 26 26 29 30 35 28 29 28 17 16 16 3 . . . . Leg 2 | . . . . . . . . . . . . 1 . . . . . . . . . . . . 19 23 13 12 24 Wheel 6 | . 10 28 36 33 19 4 12 3 . . . . . . . . . . . . . . . . . . . . . Device 7 | . 3 11 9 15 15 8 6 2 . 7 7 13 1 7 14 13 12 11 1 7 8 11 7 4 . 7 11 11 . Storage 7 | . 14 11 9 9 9 9 7 7 7 7 7 7 7 6 6 6 6 5 5 5 5 5 5 5 5 5 5 4 4 Processor 1 | . . . . . 2 3 . . . 7 7 1 . . . . . . . . . . . . . . . 3 4 Hackware 2 | . . . . . . 3 4 8 6 . . . . . 2 . 4 7 1 . 1 2 7 11 . 3 13 17 8 Protection 5 | . 6 10 9 2 . 1 1 1 6 . . . 10 6 8 9 6 3 4 4 5 6 5 5 8 3 4 2 . Energy Gun 3 | . 27 8 . . . . . . . . . . 1 . . . . . . . . . . . . . . . 4 Energy Cannon 2 | . . 13 18 20 19 . . . . . . . . . . . . . . . . . . . . . . . 1 Ballistic Gun 1 | . . . . . . . . . . . . . . . . . . . . . . 2 17 18 . . . . . Impact Weapon 1 | . . . . . . 5 7 . 2 . . . 2 6 6 6 6 5 2 . . 4 1 . 4 . . . . Slashing Weapon 4 | . . . . . 1 5 7 14 20 16 15 6 3 . 2 6 5 5 4 5 5 6 3 . 1 1 4 3 1 Piercing Weapon 8 | . . . . . 4 14 13 15 6 13 15 22 19 20 16 12 12 8 13 16 13 3 . . 1 4 3 1 . Peak Build Rating 158 | 6 9 23 24 31 32 34 40 71 65 65 58 66 70 81 81 67 74 77 100 97 98 119 136 128 85 146 149 158 115 Average Rating 62 | 4 7 18 24 28 29 30 33 61 63 57 57 59 65 69 70 63 68 73 92 91 90 104 122 117 72 100 142 132 89 On Entrance 62 | . 6 9 23 24 30 31 22 27 64 65 58 57 60 69 81 65 60 71 74 97 90 97 116 128 48 67 145 136 67 Avg Prop Armor Cover (%) 14 | . 10 . . 8 14 23 20 4 . . . 3 5 . 4 . . . . . . . . . 11 16 . . 14 Naked Turns . | . . . . . . . . . . . . . . . . . . . . . . . . . . . . . . Heaviest Build 187 | 11 91 102 101 106 102 106 100 117 114 109 103 117 138 118 129 130 129 132 163 163 145 142 156 142 136 187 187 156 104 Greatest Support 230 | 40 40 42 48 48 36 83 111 168 168 168 148 148 160 160 160 130 150 170 200 190 200 220 220 230 150 150 138 149 149 Greatest Overweight (x) 9 | . 9 9 2 2 8 6 6 3 . 1 . 1 2 . 1 1 1 . . . . . 1 1 1 1 1 1 1 Average Overweight (x) . | . 1 2 2 1 3 2 1 . . . . . . . . . . . . . . . . . . . 1 . . Largest Inventory Capacity 25 | 8 25 25 25 25 25 25 25 25 25 25 25 25 25 25 25 25 25 25 25 25 25 25 25 25 25 25 25 25 25 Average Capacity 24 | 7 16 25 25 25 25 25 25 25 25 25 25 25 25 25 25 25 25 25 25 25 25 25 25 25 25 24 25 25 23 Most Carried 25 | 4 21 25 24 25 25 25 25 25 25 25 25 25 25 25 25 25 25 25 25 25 25 25 25 25 24 25 25 23 21 Average Carried 22 | 2 10 24 24 24 24 22 23 24 24 23 25 24 24 24 23 23 24 24 24 24 24 24 24 24 20 20 23 21 17 Final Capacity 25 | 8 25 25 25 25 25 25 25 25 25 25 25 25 25 25 25 25 25 25 25 25 25 25 25 25 25 25 25 25 25 Final Carried 25 | 4 20 25 24 25 25 25 25 25 25 25 25 25 25 23 22 24 25 25 25 25 25 25 25 22 24 23 23 19 19 Class Distribution -------------------- 30% | Mutant 17% | Scavenger-Gladiator 14% | Scavenger-Mutant 9% | Bothacker-Gladiator 8% | Gladiator 5% | Gunner 5% | Scavenger-Tank Dominant Class ---------------- Mutant | -10/Materials Mutant | -9/Materials Mutant | -8/Materials Gunner | -8/Garrison Gunner | -8/Materials Bothacker-Gladiator | -8/Garrison Bothacker-Gladiator | -7/Factory Scavenger-Mutant | -7/Waste Mutant | -7/Factory Mutant | -7/Lower Caves Mutant | -7/Lower Caves Gladiator | -7/Data Miner Scavenger-Mutant | -6/Proximity Caves Scavenger-Gladiator | -6/Factory Scavenger-Gladiator | -6/Garrison Scavenger-Gladiator | -6/Factory Bothacker-Gladiator | -6/Garrison Bothacker-Gladiator | -5/Factory Scavenger-Mutant | -5/Waste Gladiator | -5/Factory Gladiator | -5/Extension Scavenger-Gladiator | -5/Cetus Scavenger-Tank | -5/Archives Scavenger-Tank | -5/Hub_04(d) Mutant | -4/Factory Mutant | -3/Research Hacker-Gladiator | -3/Garrison Bothacker-Gladiator | -2/Research Hacker-Mutant | -2/Quarantine Resources | -11 -10 -9 -8 -8 -8 -8 -7 -7 -7 -7 -7 -7 -6 -6 -6 -6 -6 -5 -5 -5 -5 -5 -5 -5 -4 -3 -3 -2 -2 ----------- Run | Yrd Mat Mat Mat Gar Mat Gar Fac Was Fac Low Low Dat Pro Fac Gar Fac Gar Fac Was Fac Ext Cet Arc Hub Fac Res Gar Res Qua Matter Collected 8209 | . 382 316 . 237 307 404 246 258 80 152 42 130 1194 . 251 40 317 . 652 113 382 474 757 . 408 300 252 484 31 Remotely . | . . . . . . . . . . . . . . . . . . . . . . . . . . . . . . Salvage Created 19245 | . 1056 2309 . 659 1206 1028 490 612 202 246 163 385 1480 . 647 154 565 143 1513 584 1564 570 638 252 762 865 252 687 213 Parts 869 | . 58 143 . 44 67 50 27 8 7 9 4 15 56 . 20 5 21 10 30 28 56 18 34 13 29 40 9 53 15 Haulers Intercepted 14 | . 2 5 . . 4 . . . . . . . . . . . . . . 1 . . . . . 2 . . . Recyclers Shooed 14 | . 5 3 . . 1 . . . . . . . . . . . . . . . . . . . 1 1 . 2 1 Parts Field Recycled . | . . . . . . . . . . . . . . . . . . . . . . . . . . . . . . Retrieved Matter . | . . . . . . . . . . . . . . . . . . . . . . . . . . . . . . Parts Self-Destructed 59 | . . . . . . . . . . 17 6 . 36 . . . . . . . . . . . . . . . . Prevented 66 | . . . . . . . . . . . . . 66 . . . . . . . . . . . . . . . . Parts Restored . | . . . . . . . . . . . . . . . . . . . . . . . . . . . . . . Kills | -11 -10 -9 -8 -8 -8 -8 -7 -7 -7 -7 -7 -7 -6 -6 -6 -6 -6 -5 -5 -5 -5 -5 -5 -5 -4 -3 -3 -2 -2 ------- Run | Yrd Mat Mat Mat Gar Mat Gar Fac Was Fac Low Low Dat Pro Fac Gar Fac Gar Fac Was Fac Ext Cet Arc Hub Fac Res Gar Res Qua Combat Hostiles Destroyed 283 | . 18 39 . 21 15 25 2 1 4 5 3 4 36 . 13 3 13 3 6 6 15 7 4 3 10 6 3 15 3 Melee 90 | . 1 . . . 3 12 2 1 4 5 3 3 . . 4 2 5 . 6 6 9 1 3 . 5 6 3 3 3 Guns 24 | . 17 6 . . . . . . . . . . . . . . . . . . . . 1 . . . . . . Cannons 40 | . . 26 . 7 7 . . . . . . . . . . . . . . . . . . . . . . . . AOE 90 | . . 7 . 14 5 10 . . . . . . 25 . 7 . 4 3 . . 2 . . 1 . . . 12 . Classes Destroyed 21 | . 7 6 . 2 1 . . 1 . . . . 2 . 1 . . . . . . . . . . . . 1 . Worker 28 | . 2 6 . . 4 . 5 . . . . . . . . . . . . 1 . . . 2 2 . . 5 1 Builder 19 | . . 4 . . . . 1 . . . . . . . . . . . . 1 . . . 1 1 2 . 9 . Tunneler 7 | . 2 1 . . . . . . . . . . . . . . . . . . . . . . 1 2 . 1 . Hauler 14 | . 2 5 . . 4 . . . . . . . . . . . . . . 1 . . . . . 2 . . . Recycler 21 | . 5 3 . . 2 . 3 . . . . . . . . . . 1 . 1 3 . . . . 1 . 2 . Mechanic 3 | . . . . . . . . . . . . . 1 . . . . 1 . . . . . . . . . . 1 Operator 16 | . . 2 . . 1 . 1 . . . . . . . . . . . . . . . 9 . 1 1 1 . . Watcher 9 | . 1 3 . . 2 . . . . . . . . . . . . . . . . 2 . . . 1 . . . Swarmer 70 | . 9 8 . 11 . 6 . . . 1 . . 12 . 4 . 7 3 . 1 . . . . 1 2 . 4 1 Saboteur 2 | . . . . . . . . . . . . . 2 . . . . . . . . . . . . . . . . Grunt 103 | . 9 20 . 2 10 11 1 . 3 3 2 . 10 . 7 2 2 . . 3 3 . . 2 4 3 3 3 . Brawler 6 | . . 1 . . . 1 . . . . 1 . 2 . . . . . . . . . . 1 . . . . . Duelist 10 | . . 1 . 1 . 3 . . . 1 . . 4 . . . . . . . . . . . . . . . . Protector 1 | . . 1 . . . . . . . . . . . . . . . . . . . . . . . . . . . Sentry 39 | . . 8 . 5 4 2 1 . . . . . . . 1 . 4 . . 1 7 . 4 . 1 1 . . . Demolisher 1 | . . . . 1 . . . . . . . . . . . . . . . . . . . . . . . . . Specialist 3 | . . . . . . . . . . . . . . . . . . . . . . . . . . . . 3 . Hunter 11 | . . . . . 1 . . . 1 . . . 2 . . 1 . . . 1 4 . . . 1 . . . . Programmer 18 | . . . . 1 . 2 . . . . . . 6 . . . . . . . . . . . 2 . . 5 2 Behemoth 4 | . . . . . . . . . . . . . . . 1 . . . . . 2 . . . 1 . . . . Compactor 7 | . . . . . . . . 1 . . . . . . . . . . 6 . . . . . . . . . . Cetus Guard 7 | . . . . . . . . . . . . . . . . . . . . . . 7 . . . . . . . Enhanced Grunt 4 | . . . . . . . . . . . . 4 . . . . . . . . . . . . . . . . . Best Kill Streak 21 | . 4 8 . 10 6 9 2 1 1 3 2 1 17 . 7 2 5 5 1 3 8 5 4 6 5 3 3 21 3 Combat Bots Only 17 | . 3 8 . 10 4 9 1 1 1 3 2 1 17 . 7 2 5 3 1 2 7 4 1 3 5 3 3 7 3 Max Kills in Single Turn 7 | . 1 3 . 2 3 5 1 1 1 1 1 1 3 . 3 1 3 3 1 1 2 2 1 4 1 1 1 7 1 Gunslinging . | . . . . . . . . . . . . . . . . . . . . . . . . . . . . . . Exploded 5 | . . 3 . 2 3 5 . . . . . . 3 . 3 . 3 2 . . 1 . . 1 . . . 3 . Melee 1 | . 1 . . . 1 1 1 1 1 1 1 1 . . 1 1 1 . 1 1 1 1 1 . 1 1 1 1 1 Uniques/NPCs Destroyed 1 | . . . . . . . . . . . . 1 . . . . . . . . . . . . . . . . . Data Miner (-7/Data Miner) Combat | -11 -10 -9 -8 -8 -8 -8 -7 -7 -7 -7 -7 -7 -6 -6 -6 -6 -6 -5 -5 -5 -5 -5 -5 -5 -4 -3 -3 -2 -2 -------- Run | Yrd Mat Mat Mat Gar Mat Gar Fac Was Fac Low Low Dat Pro Fac Gar Fac Gar Fac Was Fac Ext Cet Arc Hub Fac Res Gar Res Qua Hostile Shots Fired 2120 | . 76 163 . 90 46 198 70 . 13 65 6 26 104 . 118 14 84 11 . 34 51 107 34 221 189 99 58 176 67 Missed 614 | . 18 37 . 31 14 65 23 . . 12 . 7 40 . 46 2 38 1 . 9 13 29 8 55 51 26 15 56 18 Hits 1506 | . 58 126 . 59 32 133 47 . 13 53 6 19 64 . 72 12 46 10 . 25 38 78 26 166 138 73 43 120 49 Melee 34 | . . 9 . 5 . 9 1 . . 8 1 . . . . . . . . . . . . 1 . . . . . Projectile 1472 | . 58 117 . 54 32 124 46 . 13 45 5 19 64 . 72 12 46 10 . 25 38 78 26 165 138 73 43 120 49 AOE 2 | . . . . . . . . . . . . . . . . . . . . . . . . . . 1 . 1 . Critical Strikes 78 | . . 4 . 3 3 10 1 . . 2 1 . 4 . . . . . . . 2 12 . 10 8 3 4 5 6 Actively Blocked 1 | . . . . . . . . . . . . . 1 . . . . . . . . . . . . . . . . Part Disruptions 1 | . . . . . . . . . . . . . 1 . . . . . . . . . . . . . . . . Damage Taken 32198 | . 584 1728 . 853 560 2376 788 . 212 975 119 883 1252 . 1252 205 693 223 . 419 1209 2202 684 3429 2881 1813 1253 4480 1125 Core 3445 | . 126 386 . 132 31 379 151 . . 132 . 95 78 . 97 . 84 . . 43 92 156 83 431 201 179 39 457 73 Absorbed by Shields 135 | . . . . . . . . . . . . . . . 22 . . . . . 113 . . . . . . . . Redirected to Shielding 22 | . . . . . . . . . . . . . 14 . . . 8 . . . . . . . . . . . . Ignored by Resistances 20 | . . . . . . . . . . . . . . . 20 . . . . . . . . . . . . . . Regen/Repaired (Parts) 1131 | . 93 . . . . . . . . . . . 353 . . . . . . . . . . . 53 542 . . 90 Core Remaining (%) 49 | 100 49 3 . . . 1 . . . . . . 34 . . . 78 . . . . . . 19 82 . 83 . . Volleys Fired 537 | . 81 140 . 54 29 17 3 3 2 . . . 54 . 12 . 14 5 6 . 37 8 26 5 . . 5 21 15 Largest 4 | . 2 2 . 3 3 2 1 1 1 . . . 2 . 1 . 1 1 1 . 1 1 4 4 . . 1 1 2 Hottest 204 | . 100 136 . 204 204 66 5 39 39 . . . 85 . 46 . 46 39 5 . 46 46 140 140 . . 60 60 113 Shots Fired 921 | . 157 265 . 95 85 18 3 3 2 . . . 56 . 12 . 13 5 6 . 37 9 90 13 . . 5 21 26 Gun 402 | . 157 118 . . . . . . . . . . . . . . . . . . . 2 90 13 . . . . 22 Cannon 304 | . . 144 . 72 84 . . . . . . . . . . . . . . . . . . . . . . . 4 Launcher 169 | . . 3 . 23 1 16 . 1 1 . . . 56 . 11 . 10 3 . . 15 7 . . . . 5 17 . Special 46 | . . . . . . 2 3 2 1 . . . . . 1 . 3 2 6 . 22 . . . . . . 4 . Kinetic 105 | . . . . . . . . . . . . . . . . . . . . . . 2 90 13 . . . . . Thermal 601 | . 157 262 . 72 84 . . . . . . . . . . . . . . . . . . . . . . . 26 Explosive 54 | . . . . 4 . 1 . 1 1 . . . 19 . 2 . 1 3 . . . . . . . . 5 17 . Electromagnetic 115 | . . 3 . 19 1 15 . . . . . . 37 . 9 . 9 . . . 15 7 . . . . . . . Robot Hit Streak 27 | . 14 13 . 9 15 4 2 4 . . . . 4 . 7 . 9 7 13 . 27 4 5 . . . . 13 10 Robot Miss Streak 6 | . 4 4 . 4 2 1 1 . 1 . . . 3 . . . 2 . . . 1 1 6 1 . . . 1 1 Penetration Max 1 | . . . . . . . . . . . . . . . . . . . . . . . 1 . . . . . . Secondary Targets 3 | . 1 2 . . . . . . . . . . . . . . . . . . . . . . . . . . . Max Gunslinging Chain 1 | . 1 1 . . . . . . . . . . . . . . . . . . . . . . . . . . . Shots Hit Robots 1090 | . 98 164 . 35 76 45 29 11 14 19 8 39 20 . 28 9 16 5 119 25 74 20 71 . 50 44 16 25 30 Core Hits 608 | . 46 84 . 36 33 33 11 4 6 11 6 17 76 . 17 3 16 5 18 15 32 10 28 18 10 15 6 41 11 Critical Kills 6 | . . 2 . . . . 1 . . . . . . . . . . . . . . 1 2 . . . . . . Critical Parts Destroyed 18 | . . . . . . 2 . . . . . 1 1 . 1 1 . . 1 . . 2 3 . 6 . . . . Critical Strikes 82 | . 6 7 . . 2 4 3 . 3 5 1 6 2 . 5 1 1 . 3 . 3 6 7 . 10 5 1 1 . Burn 11 | . 6 5 . . . . . . . . . . . . . . . . . . . . . . . . . . . Meltdown 2 | . . 2 . . . . . . . . . . . . . . . . . . . . . . . . . . . Destroy 4 | . . . . . . . . . . . . . . . . . . . . . . . 4 . . . . . . Smash 19 | . . . . . . 2 1 . . . . 1 1 . 1 1 . . 1 . . 3 1 . 7 . . . . Sever 23 | . . . . . . 1 1 . 2 5 . 4 . . . . . . . . 2 3 2 . 1 . 1 1 . Impale 23 | . . . . . 2 1 1 . 1 . 1 1 1 . 4 . 1 . 2 . 1 . . . 2 5 . . . Melee Attacks 887 | . . 1 . . 37 54 45 11 18 28 11 74 9 3 34 25 30 5 117 50 74 22 46 1 63 62 33 15 19 Impact 106 | . . . . . 3 4 8 . 1 . . 11 2 1 7 13 2 4 2 . . 6 7 . 35 . . . . Slashing 301 | . . 1 . . 9 5 19 8 6 21 2 8 . . 1 1 5 1 64 12 25 16 39 1 4 5 14 15 19 Piercing 472 | . . . . . 22 45 17 3 11 7 9 55 7 2 26 11 23 . 51 38 49 . . . 24 53 19 . . Sneak Attacks 181 | . . . . . 9 2 12 6 3 . . 2 5 . . . 1 . 113 5 2 . 1 . 6 11 1 1 1 Combat Hostiles 124 | . . . . . . 2 . 6 2 . . . . . . . 1 . 113 . . . . . . . . . . Follow-up Attacks 214 | . . . . . 6 18 11 3 5 7 4 26 2 . 10 3 6 . 38 16 23 8 13 . 7 3 5 . . Damage Inflicted 46540 | . 1216 3179 . 1257 2466 2070 1192 474 513 329 172 1254 4234 . 1753 282 1209 513 3927 953 2620 1480 2460 975 2884 2729 840 4267 1292 Guns 3595 | . 1204 1039 . . . . . . . . . . . . . . . . . . . 26 1099 84 . . . . 143 Cannons 3508 | . . 1743 . 648 1039 . . . . . . . . . . . . . . . . . . . . . . . 78 Explosions 15038 | . . 384 . 609 497 950 . 72 . . . . 3932 . 1009 . 763 513 . . 912 843 . 877 . . . 3677 . Melee 24320 | . . . . . 917 1120 1192 402 513 329 172 1254 302 . 742 282 446 . 3927 953 1708 611 1361 . 2884 2729 840 590 1046 Ramming 79 | . 12 13 . . 13 . . . . . . . . . 2 . . . . . . . . 14 . . . . 25 Kinetic 1209 | . . . . . . . . . . . . . . . . . . . . . . 26 1099 84 . . . . . Thermal 6918 | . 1204 2851 . 722 1501 84 . . . . . . 47 . . . 57 69 . . 162 . . . . . . . 221 Explosive 6966 | . . . . 176 . 232 . 72 . . . . 1839 . 370 . 156 444 . . . . . . . . . 3677 . Electromagnetic 7048 | . . 315 . 359 35 634 . . . . . . 2046 . 639 . 550 . . . 750 843 . 877 . . . . . Impact 3663 | . . . . . 174 173 320 . 128 . . 377 48 . 279 235 46 . 164 . . 210 114 . 1395 . . . . Slashing 8763 | . . . . . 33 149 336 352 105 195 26 95 . . . . 41 . 2353 157 826 401 1247 . 156 266 389 590 1046 Piercing 11894 | . . . . . 710 798 536 50 280 134 146 782 254 . 463 47 359 . 1410 796 882 . . . 1333 2463 451 . . Highest Corruption 49 | . . 2 . 3 7 15 7 7 2 2 2 17 34 . 6 6 7 . 15 15 31 49 49 32 . 2 7 17 17 Average Corruption 13 | . . 1 . 2 3 12 7 3 2 2 2 5 26 . 6 6 6 . 13 15 22 40 41 31 . 2 4 10 11 Corruption Purged 24 | . . . . . . . . 5 . . . . . . . . . . . . . . 19 . . . . . . Corruption Blocked . | . . . . . . . . . . . . . . . . . . . . . . . . . . . . . . Effects 502 | . . 15 . 3 22 40 7 15 6 15 4 8 102 . . 25 20 . 37 14 41 32 60 11 . . 11 10 4 Message Errors 112 | . . 3 . . 1 11 2 3 2 6 . 2 25 . . 6 5 . 7 1 8 7 13 2 . . 4 3 1 Matter Fused 134 | . . 4 . . 7 11 1 6 1 4 1 . 25 . . 12 6 . 6 5 10 13 16 2 . . 3 1 . Heat Flow Errors 65 | . . 2 . 1 4 5 1 1 1 1 . 1 14 . . 3 3 . 4 3 5 2 7 1 . . 3 1 2 Energy Discharges 59 | . . 1 . . 3 2 . 3 1 1 1 2 11 . . 2 3 . 10 1 5 4 5 3 . . . . 1 Parts Rejected 14 | . . . . . . 1 1 . . . . . . . . . . . 3 1 2 1 2 1 . . . 2 . Parts Fused 3 | . . 1 . . . . . . . 1 . . . . . . . . . . 1 . . . . . . . . Data Loss (minor) 50 | . . 3 . 1 3 4 1 1 . . 1 2 12 . . 2 2 . 3 1 4 1 8 . . . . 1 . Data Loss (major) 24 | . . . . . . 3 1 1 1 2 . 1 5 . . . . . 2 1 4 2 . . . . . 1 . Misfires 10 | . . 1 . 1 2 . . . . . . . 1 . . . . . . . . 1 3 1 . . . . . Alerts 15 | . . . . . . 2 . . . . 1 . 6 . . . . . 1 1 . 1 1 . . . 1 1 . Misdirections 6 | . . . . . . 1 . . . . . . 1 . . . . . 1 . 2 . . 1 . . . . . Weapon Failures 10 | . . . . . 2 . . . . . . . 2 . . . 1 . . . . . 5 . . . . . . Overload Shots . | . . . . . . . . . . . . . . . . . . . . . . . . . . . . . . Overflow Damage 3324 | . . 1 . 21 182 74 133 76 111 . . 52 115 . 60 71 47 10 94 19 28 114 64 9 827 674 75 347 120 Projectiles 17 | . . 1 . 16 . . . . . . . . . . . . . . . . . . . . . . . . . Explosions 522 | . . . . 5 63 1 . . . . . . 67 . . . . 10 . . 1 61 . 9 . . . 305 . Melee 2785 | . . . . . 119 73 133 76 111 . . 52 48 . 60 71 47 . 94 19 27 53 64 . 827 674 75 42 120 Knockbacks 8 | . . . . . 1 . 2 . . . . . . . . 1 . . . . . . . . 4 . . . . Impact 8 | . . . . . 1 . 2 . . . . . . . . 1 . . . . . . . . 4 . . . . Kinetic . | . . . . . . . . . . . . . . . . . . . . . . . . . . . . . . Secondary . | . . . . . . . . . . . . . . . . . . . . . . . . . . . . . . Self-Inflicted Damage 826 | . . 26 . 33 50 29 . . . . . . 113 . 14 . 14 64 . . . 31 . 198 . . . 254 . Shots 21 | . . 1 . 3 1 2 . . . . . . 3 . 1 . 1 2 . . . 2 . 2 . . . 3 . Rammed 9 | . 5 1 . . 2 . . . . . . . . . . . . . . . . . . 1 . . . . . Targets Rammed 15 | . 6 1 . . 2 . . . . . . . . . 1 . . . . . . . . 1 . . . . 4 Kicked 4 | . . . . . . . . . . . . . . . . . . . . . . . . . . . . . 4 Crushed 2 | . 1 . . . . . . . . . . . . . 1 . . . . . . . . . . . . . . Highest Temperature 519 | . 312 519 . 411 325 244 256 211 86 262 6 255 277 . 39 260 262 . 296 200 268 132 272 86 . 8 275 379 177 Average Temperature 93 | . 89 112 . 131 66 52 143 115 47 124 6 136 80 . 15 106 87 . 108 56 89 35 61 22 . 8 86 94 78 Received Heat Transfer 6806 | . 222 657 . 225 270 873 168 . 117 333 63 . 132 . 345 54 186 . . 126 142 261 117 573 318 252 298 1074 . Effects 19 | . . 6 . 4 . . . . . 1 . 1 2 . . . . . 5 . . . . . . . . . . Shutdowns 3 | . . 3 . . . . . . . . . . . . . . . . . . . . . . . . . . . Energy Bleed 4 | . . . . . . . . . . 1 . . 1 . . . . . 2 . . . . . . . . . . Interference 10 | . . 2 . 3 . . . . . . . 1 1 . . . . . 3 . . . . . . . . . . Matter Decay 1 | . . . . 1 . . . . . . . . . . . . . . . . . . . . . . . . . Short Circuit 1 | . . 1 . . . . . . . . . . . . . . . . . . . . . . . . . . . Siege Activations . | . . . . . . . . . . . . . . . . . . . . . . . . . . . . . . Martial Activations . | . . . . . . . . . . . . . . . . . . . . . . . . . . . . . . Shielding Activations . | . . . . . . . . . . . . . . . . . . . . . . . . . . . . . . Robots Disrupted 1 | . . 1 . . . . . . . . . . . . . . . . . . . . . . . . . . . Combat Hostiles 1 | . . 1 . . . . . . . . . . . . . . . . . . . . . . . . . . . Robots Corrupted 42 | . . . . . . 3 2 . . . . 1 11 . 2 1 4 . . . 4 6 . 2 6 . . . . Combat Hostiles 39 | . . . . . . 3 . . . . . 1 11 . 2 1 4 . . . 4 6 . 2 5 . . . . Parts Fried 63 | . . 1 . 2 . 7 1 . 2 . . 2 19 . 7 3 . . . . 7 6 1 . 5 . . . . Impact Corruptions 35 | . . . . . 1 2 4 . 1 . . 3 1 . 2 2 . . 2 . . 2 1 . 14 . . . . Robots Melted 2 | . . 2 . . . . . . . . . . . . . . . . . . . . . . . . . . . Combat Hostiles . | . . . . . . . . . . . . . . . . . . . . . . . . . . . . . . Parts Melted 30 | . 4 15 . 1 6 . . . . . . . . . . . . . . . 2 . . . . 1 1 . . Heat Transferred 14477 | . 3677 6415 . 1182 2137 100 . . . . . . 50 . . . 100 50 . . 100 . . . . . . . 666 Parts Sabotaged . | . . . . . . . . . . . . . . . . . . . . . . . . . . . . . . Parts Stolen . | . . . . . . . . . . . . . . . . . . . . . . . . . . . . . . Parts Stripped . | . . . . . . . . . . . . . . . . . . . . . . . . . . . . . . Power Chain Reactions 13 | . . 2 . 5 1 1 . . . . . . 1 . . . 1 . . . 2 . . . . . . . . Alert | -11 -10 -9 -8 -8 -8 -8 -7 -7 -7 -7 -7 -7 -6 -6 -6 -6 -6 -5 -5 -5 -5 -5 -5 -5 -4 -3 -3 -2 -2 ------- Run | Yrd Mat Mat Mat Gar Mat Gar Fac Was Fac Low Low Dat Pro Fac Gar Fac Gar Fac Was Fac Ext Cet Arc Hub Fac Res Gar Res Qua Maximum Alert Level 4 | . . 3 1 3 3 4 2 . . . . . . 2 3 1 3 2 . . 1 . . 2 1 . . 2 1 Low Security (%) 55 | 100 100 45 . . . . . 100 100 . . . . . . . 10 . 100 100 78 100 100 81 . 100 100 50 67 Level 1 16 | . . 5 100 24 38 . 31 . . . . . . 75 43 100 3 . . . 21 . . 16 100 . . 26 32 Level 2 18 | . . 45 . 37 57 40 68 . . . . . . 24 21 . 35 100 . . . . . 1 . . . 23 . Level 3 7 | . . 3 . 37 4 45 . . . . . . . . 34 . 49 . . . . . . . . . . . . Level 4 . | . . . . . . 13 . . . . . . . . . . . . . . . . . . . . . . . Level 5 . | . . . . . . . . . . . . . . . . . . . . . . . . . . . . . . High Security . | . . . . . . . . . . . . . . . . . . . . . . . . . . . . . . Max Security . | . . . . . . . . . . . . . . . . . . . . . . . . . . . . . . Peak Influence 1137 | . 197 756 323 870 703 1137 575 112 30 . . . . 408 725 380 904 616 191 159 245 155 161 681 341 172 169 554 261 Initial 575 | . . 78 317 203 423 453 575 112 . . . . . 408 258 380 172 474 191 . 68 86 . . 333 159 . 94 261 Average 253 | . 87 287 320 537 434 840 447 14 7 . . . . 391 524 294 634 498 32 66 92 36 62 56 275 70 93 208 184 Influence Increases 11872 | . 605 1293 6 707 736 864 182 8 107 335 123 20 952 151 547 187 842 232 2 257 663 156 388 804 336 285 199 751 134 Destroy 0b10 Robot/C 6140 | . 360 760 . 420 340 600 60 . 80 100 80 20 820 . 320 100 480 60 . 120 400 140 80 60 200 120 60 300 60 Destroy 0b10 Robot/NC 595 | . 60 125 . . 65 . 50 . . . . . 10 . . . . 10 . 20 15 10 45 15 25 45 5 85 10 Destroy Leader 852 | . 86 216 . 20 112 30 10 . 20 10 10 . 10 . 10 40 40 10 . 22 50 . . . 40 46 . 60 10 Allied During Kill 307 | . . . . . 4 17 1 . . . 3 . 52 . 29 16 109 4 . . 68 4 . . . . . . . Successful Hack 165 | . 7 2 6 28 5 16 12 . . . . . . . 14 25 . 4 . . 35 . . . 5 . . . 6 Select Force Hacks 120 | . 60 60 . . . . . . . . . . . . . . . . . . . . . . . . . . . Disable Machine 660 | . . 105 . . 135 . 30 . . . . . . . . . . 90 . . 30 . 45 120 . . 45 15 45 Anti-Garrison Action 550 | . . . . 100 . 100 . . . . . . . . 50 . 100 . . . . . . 150 . . 50 . . Destroy Structure 1238 | . 2 10 . 64 60 41 4 8 7 . . . . 1 49 6 83 54 2 20 50 2 38 444 6 14 24 246 3 Advance Influence 150 | . . . . . . . . . . . . . . 150 . . . . . . . . . . . . . . . Partial Spotted 15 | . . . . . . . . . . . . . . . . . . . . 15 . . . . . . . . . Lose Combat Pursuer 1080 | . 30 15 . 75 15 60 15 . . 225 30 . 60 . 75 . 30 . . 60 15 . 180 15 60 60 15 45 . Influence Decreases 11741 | . 420 727 444 150 909 464 958 329 107 301 157 20 542 192 191 665 185 590 548 116 649 311 388 123 714 588 30 455 468 Entered New Map 4461 | . . 107 434 110 447 244 522 209 . . 7 . . 152 111 345 75 430 355 . 73 69 . . 348 144 . 75 204 Time Decay 5598 | . 390 580 10 . 422 . 286 120 107 276 137 20 502 40 . 310 . 120 173 116 372 152 388 33 286 334 . 210 214 Lost Part 1145 | . 30 40 . 40 20 180 110 . . 25 . . . . 40 10 30 . . . 30 70 . 90 80 100 30 170 50 Lost Ally 537 | . . . . . 20 40 40 . . . 13 . 40 . 40 . 80 40 20 . 174 20 . . . 10 . . . Squads Dispatched 55 | . 4 8 . . 3 . 7 . 2 . . . . . . 6 . 1 . 1 6 . . 7 3 3 . 3 1 Investigation 17 | . 3 4 . . 1 . 1 . . . . . . . . . . 1 . 1 6 . . . . . . . . Extermination 6 | . . . . . . . 1 . 1 . . . . . . 1 . . . . . . . . 1 . . 1 1 Reinforcement 21 | . 1 3 . . 2 . 2 . 1 . . . . . . 2 . . . . . . . 3 2 3 . 2 . Assault 5 | . . 1 . . . . . . . . . . . . . . . . . . . . . 4 . . . . . Garrison 6 | . . . . . . . 3 . . . . . . . . 3 . . . . . . . . . . . . . Intercept . | . . . . . . . . . . . . . . . . . . . . . . . . . . . . . . Searches Triggered . | . . . . . . . . . . . . . . . . . . . . . . . . . . . . . . Construction Impeded 1 | . . . . . . . . . . . . . . . . . . . . . . . . 1 . . . . . Haulers Reinforced 3 | . . . . . . . . . . . . . . . . . . . . . . . . 1 . 2 . . . Active Scanning Responses . | . . . . . . . . . . . . . . . . . . . . . . . . . . . . . . Cargo Convoy Interrupts . | . . . . . . . . . . . . . . . . . . . . . . . . . . . . . . Alert ID Control Effect 4 | . . . . . . . . . . . . . . . . . . 2 . . 1 . . . . . . 1 . Stealth | -11 -10 -9 -8 -8 -8 -8 -7 -7 -7 -7 -7 -7 -6 -6 -6 -6 -6 -5 -5 -5 -5 -5 -5 -5 -4 -3 -3 -2 -2 --------- Run | Yrd Mat Mat Mat Gar Mat Gar Fac Was Fac Low Low Dat Pro Fac Gar Fac Gar Fac Was Fac Ext Cet Arc Hub Fac Res Gar Res Qua Distress Signals 29 | . 3 2 . . 4 . 1 . . . . . 1 . . . . . . . 1 2 . 2 1 6 . 5 1 Communications Jammed 78 | . . . . . . . . . . . . . . . . . . . . . . . . . . . . 78 . Distress Signals 78 | . . . . . . . . . . . . . . . . . . . . . . . . . . . . 78 . Times Spotted 508 | . 33 54 . 26 29 31 16 1 5 22 5 4 38 . 24 10 26 7 6 10 22 9 24 22 18 19 4 32 11 Peak Tracking Total 14 | . 4 6 1 6 6 10 7 1 3 9 4 1 8 . 5 2 8 4 3 5 7 5 2 14 7 6 3 7 7 Tactical Retreats 48 | . 2 1 . 4 1 3 1 . . 7 1 . 3 . 4 . 1 . . 1 1 . 9 1 1 4 1 2 . Traps | -11 -10 -9 -8 -8 -8 -8 -7 -7 -7 -7 -7 -7 -6 -6 -6 -6 -6 -5 -5 -5 -5 -5 -5 -5 -4 -3 -3 -2 -2 ------- Run | Yrd Mat Mat Mat Gar Mat Gar Fac Was Fac Low Low Dat Pro Fac Gar Fac Gar Fac Was Fac Ext Cet Arc Hub Fac Res Gar Res Qua Traps Triggered 23 | . 2 2 . 3 2 2 1 . . . . . . . . . 3 1 . . 3 . . 2 . 2 . . . Indirectly 4 | . . . . . . . . . . . . . . . . . 1 . . . 1 . . 2 . . . . . Trap Hack Attempts . | . . . . . . . . . . . . . . . . . . . . . . . . . . . . . . Triggered . | . . . . . . . . . . . . . . . . . . . . . . . . . . . . . . Disarmed . | . . . . . . . . . . . . . . . . . . . . . . . . . . . . . . Reprogrammed . | . . . . . . . . . . . . . . . . . . . . . . . . . . . . . . Reused . | . . . . . . . . . . . . . . . . . . . . . . . . . . . . . . Traps Extracted . | . . . . . . . . . . . . . . . . . . . . . . . . . . . . . . Installed . | . . . . . . . . . . . . . . . . . . . . . . . . . . . . . . Triggered . | . . . . . . . . . . . . . . . . . . . . . . . . . . . . . . Machines | -11 -10 -9 -8 -8 -8 -8 -7 -7 -7 -7 -7 -7 -6 -6 -6 -6 -6 -5 -5 -5 -5 -5 -5 -5 -4 -3 -3 -2 -2 ---------- Run | Yrd Mat Mat Mat Gar Mat Gar Fac Was Fac Low Low Dat Pro Fac Gar Fac Gar Fac Was Fac Ext Cet Arc Hub Fac Res Gar Res Qua Machines Disabled 53 | . . 7 . 2 9 2 2 . . . . . . . 1 . 2 6 . . 2 . 3 9 . . 4 1 3 Max in Single Turn 7 | . . 2 . 1 7 1 1 . . . . . . . 1 . 1 4 . . 1 . 1 7 . . 1 1 1 Garrison Access 5 | . . . . . . . . . . . . . . . . . . 1 . . . . . 2 . 1 . 1 . Garrison Relay 8 | . . . . 2 . 2 . . . . . . . . 1 . 2 . . . . . . . . . 1 . . Network Hub 2 | . . . . . . . . . . . . . . . . . . . . . . . . 2 . . . . . Machines Repaired . | . . . . . . . . . . . . . . . . . . . . . . . . . . . . . . Machines Dismantled . | . . . . . . . . . . . . . . . . . . . . . . . . . . . . . . Machines Sabotaged . | . . . . . . . . . . . . . . . . . . . . . . . . . . . . . . Overloaded Fab Kills . | . . . . . . . . . . . . . . . . . . . . . . . . . . . . . . Hacking | -11 -10 -9 -8 -8 -8 -8 -7 -7 -7 -7 -7 -7 -6 -6 -6 -6 -6 -5 -5 -5 -5 -5 -5 -5 -4 -3 -3 -2 -2 --------- Run | Yrd Mat Mat Mat Gar Mat Gar Fac Was Fac Low Low Dat Pro Fac Gar Fac Gar Fac Was Fac Ext Cet Arc Hub Fac Res Gar Res Qua Machines Accessed 59 | . 5 4 2 2 3 1 3 . . 1 1 4 1 1 1 4 . 3 . 3 12 . . 1 1 4 . 1 1 Terminals 30 | . 2 . 1 2 2 1 1 . . . 1 . 1 . 1 2 . 1 . 1 12 . . 1 . 1 . . . Fabricators 5 | . . . . . . . 2 . . . . . . . . 1 . 1 . 1 . . . . . . . . . Repair Stations 5 | . 1 . . . . . . . . . . . . . . . . . . 1 . . . . 1 1 . . 1 Recycling Units 4 | . 2 2 . . . . . . . . . . . . . . . . . . . . . . . . . . . Scanalyzers 2 | . . 2 . . . . . . . . . . . . . . . . . . . . . . . . . . . Garrison Access 8 | . . . 1 . 1 . . . . . . . . 1 . 1 . 1 . . . . . . . 2 . 1 . Total Hacks 144 | . 12 8 4 5 5 1 5 . . 1 1 30 1 1 1 14 . 6 . 6 26 . . 1 5 8 . 1 2 Successful 84 | . 6 5 3 2 2 1 2 . . 1 1 30 1 1 1 9 . 3 . 3 5 . . . 2 4 . 1 1 Failed 59 | . 6 2 1 3 3 . 3 . . . . . . . . 5 . 3 . 3 21 . . 1 3 4 . . 1 Catastrophic 15 | . 2 . . . 1 . 1 . . . . . . . . 1 . . . 1 7 . . . . 2 . . . Database Lockouts 1 | . . 1 . . . . . . . . . . . . . . . . . . . . . . . . . . . Manual 22 | . 7 2 2 . 4 . 2 . . . . . . . . 3 . . . . . . . 1 . 1 . . . Terminals 57 | . 4 . 2 5 4 1 2 . . . 1 . 1 . 1 5 . 2 . 1 26 . . 1 . 1 . . . Fabricators 17 | . . . . . . . 3 . . . . . . . . 8 . 3 . 3 . . . . . . . . . Repair Stations 20 | . 6 . . . . . . . . . . . . . . . . . . 2 . . . . 5 5 . . 2 Recycling Units 4 | . 2 2 . . . . . . . . . . . . . . . . . . . . . . . . . . . Scanalyzers 6 | . . 6 . . . . . . . . . . . . . . . . . . . . . . . . . . . Garrison Access 9 | . . . 2 . 1 . . . . . . . . 1 . 1 . 1 . . . . . . . 2 . 1 . Terminal Hacks 49 | . 1 . 1 2 1 1 . . . 1 1 30 1 . 1 2 . 1 . 1 5 . . . . . . . . Record 12 | . . . . . . . . . . . 1 11 . . . . . . . . . . . . . . . . . Part Schematic 10 | . 1 . . . . . . . . . . 9 . . . . . . . . . . . . . . . . . Robot Schematic 7 | . . . . . . . . . . . . 7 . . . . . . . . . . . . . . . . . Prototype ID Bank 3 | . . . . . . . . . . . . 3 . . . . . . . . . . . . . . . . . Open Door 8 | . . . . . . . . . . 1 . . 1 . . . . . . 1 5 . . . . . . . . Emergency Access Points 2 | . . . . 1 . . . . . . . . . . 1 . . . . . . . . . . . . . . Locate Traps 1 | . . . . . . . . . . . . . . . . . . 1 . . . . . . . . . . . Registered Components 1 | . . . . . . . . . . . . . . . . 1 . . . . . . . . . . . . . Registered Prototypes 1 | . . . . . . . . . . . . . . . . 1 . . . . . . . . . . . . . Zone Layout 2 | . . . 1 . 1 . . . . . . . . . . . . . . . . . . . . . . . . Garrison Registry 1 | . . . . 1 . . . . . . . . . . . . . . . . . . . . . . . . . Patrol Navigation 1 | . . . . . . 1 . . . . . . . . . . . . . . . . . . . . . . . Fabricator Hacks 10 | . . . . . . . 2 . . . . . . . . 6 . 1 . 1 . . . . . . . . . Load Schematic 6 | . . . . . . . 1 . . . . . . . . 3 . 1 . 1 . . . . . . . . . Build 4 | . . . . . . . 1 . . . . . . . . 3 . . . . . . . . . . . . . Repair Station Hacks 9 | . 3 . . . . . . . . . . . . . . . . . . 1 . . . . 2 2 . . 1 Scan Component 5 | . 2 . . . . . . . . . . . . . . . . . . 1 . . . . 1 1 . . . Repair 3 | . 1 . . . . . . . . . . . . . . . . . . . . . . . 1 1 . . . Refit 1 | . . . . . . . . . . . . . . . . . . . . . . . . . . . . . 1 Recycling Unit Hacks . | . . . . . . . . . . . . . . . . . . . . . . . . . . . . . . Scanalyzer 3 | . . 3 . . . . . . . . . . . . . . . . . . . . . . . . . . . Insert Component 1 | . . 1 . . . . . . . . . . . . . . . . . . . . . . . . . . . Analyze 1 | . . 1 . . . . . . . . . . . . . . . . . . . . . . . . . . . Retrieve Study 1 | . . 1 . . . . . . . . . . . . . . . . . . . . . . . . . . . Garrison Access Hacks 8 | . . . 1 . 1 . . . . . . . . 1 . 1 . 1 . . . . . . . 2 . 1 . Unlock Access 5 | . . . 1 . 1 . . . . . . . . 1 . 1 . . . . . . . . . 1 . . . Seal Access 3 | . . . . . . . . . . . . . . . . . . 1 . . . . . . . 1 . 1 . Unauthorized Hacks 5 | . 2 2 1 . . . . . . . . . . . . . . . . . . . . . . . . . . Terminals 1 | . . . 1 . . . . . . . . . . . . . . . . . . . . . . . . . . Botnet 1 | . . . 1 . . . . . . . . . . . . . . . . . . . . . . . . . . Fabricators . | . . . . . . . . . . . . . . . . . . . . . . . . . . . . . . Repair Stations . | . . . . . . . . . . . . . . . . . . . . . . . . . . . . . . Recycling Units 4 | . 2 2 . . . . . . . . . . . . . . . . . . . . . . . . . . . Tunnel 4 | . 2 2 . . . . . . . . . . . . . . . . . . . . . . . . . . . Scanalyzers . | . . . . . . . . . . . . . . . . . . . . . . . . . . . . . . Garrison Access . | . . . . . . . . . . . . . . . . . . . . . . . . . . . . . . Data Cores Recovered 2 | . . . . . 1 . 1 . . . . . . . . . . . . . . . . . . . . . . Used . | . . . . . . . . . . . . . . . . . . . . . . . . . . . . . . Hacking Detections 34 | . 3 2 2 2 2 . 3 . . . . . . . 1 3 . 2 . 2 8 . . 1 1 2 . . . Full Trace Events 13 | . 1 2 . . 1 . 1 . . . . . . . . . . 1 . 1 6 . . . . . . . . Feedback Events 2 | . . . . . . . . . . . . . . . . . . . . . 2 . . . . . . . . Corruption 2 | . . . . . . . . . . . . . . . . . . . . . 2 . . . . . . . . Feedback Blocked . | . . . . . . . . . . . . . . . . . . . . . . . . . . . . . . Robot Schematics Acquired 7 | . . . . . . . . . . . . 7 . . . . . . . . . . . . . . . . . Robots Built 6 | . . . . . . . . . . . . . . . . 6 . . . . . . . . . . . . . Authchips 3 | . . . . . . . . . . . . . . . . 3 . . . . . . . . . . . . . Time 348 | . . . . . . . . . . . . . . . . 348 . . . . . . . . . . . . . Total Robot Build Rating 18 | . . . . . . . . . . . . . . . . 18 . . . . . . . . . . . . . Part Schematics Acquired 10 | . 1 . . . . . . . . . . 9 . . . . . . . . . . . . . . . . . Parts Built 1 | . . . . . . . 1 . . . . . . . . . . . . . . . . . . . . . . Authchips . | . . . . . . . . . . . . . . . . . . . . . . . . . . . . . . Time 25 | . . . . . . . 25 . . . . . . . . . . . . . . . . . . . . . . Total Part Build Rating 1 | . . . . . . . 1 . . . . . . . . . . . . . . . . . . . . . . Part Studies Acquired 1 | . . 1 . . . . . . . . . . . . . . . . . . . . . . . . . . . Parts Repaired 3 | . 1 . . . . . . . . . . . . . . . . . . . . . . . 1 1 . . . Time 129 | . 26 . . . . . . . . . . . . . . . . . . . . . . . 95 8 . . . Parts Recycled . | . . . . . . . . . . . . . . . . . . . . . . . . . . . . . . Recycled Matter . | . . . . . . . . . . . . . . . . . . . . . . . . . . . . . . Retrieved Matter . | . . . . . . . . . . . . . . . . . . . . . . . . . . . . . . Retrieved Components . | . . . . . . . . . . . . . . . . . . . . . . . . . . . . . . Parts Scanalyzed 1 | . . 1 . . . . . . . . . . . . . . . . . . . . . . . . . . . Part Schematics Acquired . | . . . . . . . . . . . . . . . . . . . . . . . . . . . . . . Parts Damaged . | . . . . . . . . . . . . . . . . . . . . . . . . . . . . . . Bothacking | -11 -10 -9 -8 -8 -8 -8 -7 -7 -7 -7 -7 -7 -6 -6 -6 -6 -6 -5 -5 -5 -5 -5 -5 -5 -4 -3 -3 -2 -2 ------------ Run | Yrd Mat Mat Mat Gar Mat Gar Fac Was Fac Low Low Dat Pro Fac Gar Fac Gar Fac Was Fac Ext Cet Arc Hub Fac Res Gar Res Qua Used RIF Installer 5 | . . . . 1 . 1 . . . . . . . . 1 . 1 . . . . . . . . . 1 . . Coupler Efficiency 1 | . . . . . . . . . . . . . . . 1 . . . . . . . . . . . . . . Code Merge 1 | . . . . . . . . . . . . . . . . . . . . . . . . . . . 1 . . Alert ID Control 1 | . . . . . . . . . . . . . . . . . 1 . . . . . . . . . . . . Program Shield 1 | . . . . . . 1 . . . . . . . . . . . . . . . . . . . . . . . Robots Hacked 22 | . . . . . 1 2 3 1 . . . . . . . . 2 2 6 . 1 . . . . 1 . 3 . Non-combat 4 | . . . . . . . 1 . . . . . . . . . . 2 . . . . . . . 1 . . . Combat 18 | . . . . . 1 2 2 1 . . . . . . . . 2 . 6 . 1 . . . . . . 3 . Robot Hacks Applied 24 | . . . . . 2 2 3 1 . . . . . . . . 2 2 6 . 1 . . . . 2 . 3 . find_chute 2 | . . . . . . . 1 . . . . . . . . . . 1 . . . . . . . . . . . drop_inventory 2 | . . . . . . . . . . . . . . . . . . 1 . . . . . . . 1 . . . locate_stockpiles 1 | . . . . . . . . . . . . . . . . . . . . . . . . . . 1 . . . ignore_targets 7 | . . . . . . . . 1 . . . . . . . . . . 6 . . . . . . . . . . find_garrison 1 | . . . . . 1 . . . . . . . . . . . . . . . . . . . . . . . . overwrite_iff 4 | . . . . . . 1 . . . . . . . . . . . . . . 1 . . . . . . 2 . formatsys_high 7 | . . . . . 1 1 2 . . . . . . . . . 2 . . . . . . . . . . 1 . Relay Couplers Released 38 | . . . . 11 . 8 . . . . . . . . 4 . 8 . . . . . . 3 . . 4 . . Machine Destruction 35 | . . . . 8 . 8 . . . . . . . . 4 . 8 . . . . . . 3 . . 4 . . Programmers 3 | . . . . 3 . . . . . . . . . . . . . . . . . . . . . . . . . Attached 16 | . . . . . 1 2 2 1 . . . . . . 2 . 3 1 . . 1 . . . . 1 . 2 . Fabnet Peak Effective % . | . . . . . . . . . . . . . . . . . . . . . . . . . . . . . . Robots Rewired 19 | . . . . . . 1 . . . 2 . . 7 . 1 . . . . . 8 . . . . . . . . Allies Hacked 1 | . . . . . . . . . . . . . . . . 1 . . . . . . . . . . . . . Hacks Repelled . | . . . . . . . . . . . . . . . . . . . . . . . . . . . . . . Allies | -11 -10 -9 -8 -8 -8 -8 -7 -7 -7 -7 -7 -7 -6 -6 -6 -6 -6 -5 -5 -5 -5 -5 -5 -5 -4 -3 -3 -2 -2 -------- Run | Yrd Mat Mat Mat Gar Mat Gar Fac Was Fac Low Low Dat Pro Fac Gar Fac Gar Fac Was Fac Ext Cet Arc Hub Fac Res Gar Res Qua Total Allies 47 | . . . . . 1 3 2 . . 5 . . 8 . 1 6 2 . . . 16 . . . . . . 3 . Largest Group 7 | . . . . . 1 1 1 . . 3 2 . 7 3 3 6 6 3 1 . 6 1 . . . . . 3 . Highest-Rated Group 311 | . . . . . 16 16 30 . . 93 46 . 188 104 104 126 126 79 21 . 311 31 . . . . . 202 . Highest-Rated Ally 159 | . . . . . 16 16 30 . . 31 30 . 46 46 46 21 29 29 21 . 159 31 . . . . . 69 . Total Orders 2 | . . . . . . . . . . . . . . . . . . . . . . . . . . 2 . . . EXPLORE 2 | . . . . . . . . . . . . . . . . . . . . . . . . . . 2 . . . Ally Attacks 263 | . . . . . 9 31 3 . . 3 10 . 39 . 28 7 56 7 6 . 48 7 . . . . . 9 . Total Damage 6026 | . . . . . 112 522 67 . . 42 183 . 737 . 496 170 1381 101 145 . 1644 82 . . . . . 344 . Kills 42 | . . . . . 2 5 1 . . . 1 . 5 . 5 2 12 2 . . 6 . . . . . . 1 . Allies Corrupted 1 | . . . . . . . . . . . . . . . . . . . . . . . . . . 1 . . . Allies Melted . | . . . . . . . . . . . . . . . . . . . . . . . . . . . . . . Intel | -11 -10 -9 -8 -8 -8 -8 -7 -7 -7 -7 -7 -7 -6 -6 -6 -6 -6 -5 -5 -5 -5 -5 -5 -5 -4 -3 -3 -2 -2 ------- Run | Yrd Mat Mat Mat Gar Mat Gar Fac Was Fac Low Low Dat Pro Fac Gar Fac Gar Fac Was Fac Ext Cet Arc Hub Fac Res Gar Res Qua Active Infowar (turns) 2968 | . . . . . . . . 68 22 969 588 88 . . . . . . . . . . . . . 316 444 473 . Sensors 1735 | . . . . . . . . 68 22 969 588 88 . . . . . . . . . . . . . . . . . Terrain 457 | . . . . . . . . . . . . . . . . . . . . . . . . . . . . 457 . Jamming 1214 | . . . . . . . . . . . . . . . . . . . . . . . . . . 316 444 454 . Robot Analysis Total 154 | . . . . . . . . . . . . 154 . . . . . . . . . . . . . . . . . Derelict Logs Recovered 3 | . . . . . . . . . . 1 1 . 1 . . . . . . . . . . . . . . . . Drone Launches 2 | . . . . . . . . . . . . . . . . . . . . . . . . . . 2 . . . Drone Recoveries . | . . . . . . . . . . . . . . . . . . . . . . . . . . . . . . Exploration | -11 -10 -9 -8 -8 -8 -8 -7 -7 -7 -7 -7 -7 -6 -6 -6 -6 -6 -5 -5 -5 -5 -5 -5 -5 -4 -3 -3 -2 -2 ------------- Run | Yrd Mat Mat Mat Gar Mat Gar Fac Was Fac Low Low Dat Pro Fac Gar Fac Gar Fac Was Fac Ext Cet Arc Hub Fac Res Gar Res Qua Turns Passed 22426 | 80 1633 2014 22 681 1035 1166 630 924 487 1062 633 534 2205 83 566 697 591 247 997 309 893 632 1064 182 630 1045 444 485 455 Spaces Moved 10779 | 44 844 1213 19 416 557 413 290 452 227 555 361 211 1115 43 239 216 269 134 455 135 383 328 465 95 178 551 154 203 214 Core 3 | 3 . . . . . . . . . . . . . . . . . . . . . . . . . . . . . Treads 6522 | 41 453 . . . . 234 87 410 227 555 361 211 1115 43 239 216 269 134 455 135 383 328 465 95 66 . . . . Legs 1234 | . . . . . . . . . . . . . . . . . . . . . . . . . 112 551 154 203 214 Wheels 3020 | . 391 1213 19 416 557 179 203 42 . . . . . . . . . . . . . . . . . . . . . Hover . | . . . . . . . . . . . . . . . . . . . . . . . . . . . . . . Flight . | . . . . . . . . . . . . . . . . . . . . . . . . . . . . . . Fastest Speed 50 | 50 140 110 110 95 110 135 107 130 160 152 156 156 160 160 160 162 160 160 160 160 160 160 160 160 120 120 202 118 115 Average Speed 154 | 152 154 119 110 109 134 208 153 157 160 156 156 159 167 160 182 172 177 160 160 160 160 160 163 161 177 140 203 177 131 Slowest Speed 323 | 160 320 215 110 110 200 240 242 240 160 232 156 245 323 160 242 242 242 160 160 160 160 160 240 240 240 209 209 220 185 Overloaded Moves . | . . . . . . . . . . . . . . . . . . . . . . . . . . . . . . Propulsion Burnouts . | . . . . . . . . . . . . . . . . . . . . . . . . . . . . . . Robots Hopped . | . . . . . . . . . . . . . . . . . . . . . . . . . . . . . . Potential Cave-ins 29 | . . . . . . . . . . . . . . . . . . . . . 9 . . . . . 9 11 . Cave-ins Triggered 5 | . . . . . . . 1 . . . . . . . . . . . . . 1 . . . . . 2 1 . Exploration Rate (%) 41 | 4 97 83 4 50 48 51 12 95 8 58 54 80 87 1 39 8 42 9 91 4 55 57 97 25 6 36 19 9 26 Regions Visited 29 Branch Regions 9 Pre-discovered Areas 31 | . 2 2 . . . . . . . . . 27 . . . . . . . . . . . . . . . . . Known Exits Taken 8 | . . . 1 . 1 . . . 1 1 1 . . 1 . 1 . . . . . . . . . 1 . . . Unknown Exits Taken 12 | 1 1 1 . . . . . . . . . 1 1 . . . . . . 1 1 1 1 1 1 . . 1 . Scrap Searched 4 | . . . . . . . . . . 3 . . 1 . . . . . . . . . . . . . . . . Spaces Dug 72 | . . . . . 6 . 5 . . . . . . 1 . 6 . 5 1 10 14 . . 5 3 7 4 4 1 Terrain Destroyed 993 | . . 5 . 14 60 1 5 10 6 . . . 186 1 4 6 22 25 1 10 27 1 34 317 3 7 86 161 1 Melee 68 | . . . . . 6 . 5 . . . . . . 1 . 6 . 5 1 10 14 . . 1 3 7 4 4 1 Projectile 43 | . . . . . . . . . . . . . . . . . . . . . . 1 34 8 . . . . . AOE 882 | . . 5 . 14 54 1 . 10 6 . . . 186 . 4 . 22 20 . . 13 . . 308 . . 82 157 . Terrain Rammed . | . . . . . . . . . . . . . . . . . . . . . . . . . . . . . . Walls Destroyed . | . . . . . . . . . . . . . . . . . . . . . . . . . . . . . . Machines Disabled . | . . . . . . . . . . . . . . . . . . . . . . . . . . . . . . Actions | -11 -10 -9 -8 -8 -8 -8 -7 -7 -7 -7 -7 -7 -6 -6 -6 -6 -6 -5 -5 -5 -5 -5 -5 -5 -4 -3 -3 -2 -2 --------- Run | Yrd Mat Mat Mat Gar Mat Gar Fac Was Fac Low Low Dat Pro Fac Gar Fac Gar Fac Was Fac Ext Cet Arc Hub Fac Res Gar Res Qua Total 14690 | 54 1014 1516 20 553 741 649 420 653 328 707 419 340 1395 52 335 519 356 154 587 193 578 412 676 109 376 711 222 275 326 Wait 1455 | . 34 61 . 31 68 68 57 131 64 75 49 44 75 3 22 264 7 . 14 15 69 7 101 2 117 17 9 7 44 Move 10753 | 43 843 1212 19 414 557 412 290 451 226 554 360 210 1114 43 238 216 268 134 454 134 381 327 464 94 177 551 151 202 214 Hop . | . . . . . . . . . . . . . . . . . . . . . . . . . . . . . . Pick Up 307 | 4 25 36 . 11 11 23 8 11 6 9 1 13 18 . 12 8 14 2 7 2 8 16 13 . 8 21 6 7 7 Fast Attach 144 | 6 7 10 . 1 10 2 11 10 . 2 . 3 9 . 3 . 3 1 5 2 4 10 10 1 9 13 4 5 3 Attach 140 | . 3 4 1 5 3 16 6 2 1 5 . 7 2 2 5 2 5 1 2 4 6 10 5 2 6 14 2 11 8 Detach 22 | . . . . . . . 1 . . . . . 1 . . . . . 2 1 1 1 3 . 2 2 1 2 5 Swap 179 | 1 3 14 . 6 16 8 8 7 10 4 2 8 12 1 7 5 9 5 5 1 14 8 3 3 . 11 6 2 . Drop 292 | . 12 37 . 7 20 9 6 23 7 2 1 7 30 . 11 4 12 1 16 4 8 12 19 . 2 23 9 3 7 Fire 537 | . 81 140 . 54 29 17 3 3 2 . . . 54 . 12 . 14 5 6 . 37 8 26 5 . . 5 21 15 Melee 633 | . . 1 . . 25 34 30 6 12 18 6 48 6 3 23 20 22 5 76 30 46 13 32 1 55 59 28 15 19 Ram 3 | . . 1 . . 2 . . . . . . . . . . . . . . . . . . . . . . . . Kick 4 | . . . . . . . . . . . . . . . . . . . . . . . . . . . . . 4 Crush 8 | . 6 . . . . . . . . . . . . . 1 . . . . . . . . 1 . . . . . Escape Stasis 38 | . . . . 24 . 8 . . . . . . . . 1 . 2 . . . 2 . . . . . 1 . . Rewire 175 | . . . . . . 52 . 9 . 38 . . 74 . . . . . . . 2 . . . . . . . . Trap . | . . . . . . . . . . . . . . . . . . . . . . . . . . . . . . Miscellaneous . | . . . . . . . . . . . . . . . . . . . . . . . . . . . . . . Route ------- -11/Scrapyard -10/Materials (discovered 5 exits: *Mat x3 / [*Min x2]) -9/Materials (discovered 3 exits: *Mat x2 / [*Min]) -8/Materials -8/Garrison (discovered 3 exits: *Mat x3) -8/Materials -8/Garrison -7/Factory -7/Waste -7/Factory -7/Lower Caves -7/Lower Caves -7/Data Miner -6/Proximity Caves -6/Factory -6/Garrison -6/Factory -6/Garrison -5/Factory -5/Waste -5/Factory -5/Extension (discovered 2 exits: *Fac / [*Cet]) -5/Cetus (discovered 2 exits: *Fac / [*Arc]) -5/Archives (discovered 3 exits: *Fac / *Hub x2) -5/Hub_04(d) -4/Factory -3/Research (discovered 3 exits: *Res / [*Tes] / Gar) -3/Garrison -2/Research -2/Quarantine History --------- Turn | Location | Event 29 | -11/Scrapyard | Discovered new exit (range 15) 81 | -11/Scrapyard | Entered Materials 179 | -10/Materials | Discovered new exit (range 3) 310 | -10/Materials | Build established: Mutant 813 | -10/Materials | Discovered new exit (range 14) 866 | -10/Materials | Repaired Lgt. Treads 969 | -10/Materials | Discovered new exit (range 9) 1164 | -10/Materials | Discovered new exit (range 16) 1402 | -10/Materials | Discovered new exit (range 6) 1575 | -10/Materials | Core integrity fell below 50% 1714 | -10/Materials | Entered another Materials area 1714 | -9/Materials | Evolved 2 slots: Propulsion x1, Utility x1 2470 | -9/Materials | Discovered new exit (range 13) 2674 | -9/Materials | Core integrity fell below 50% 2914 | -9/Materials | First assault squad dispatched 2960 | -9/Materials | Discovered new exit (range 16) 3285 | -9/Materials | Core integrity fell below 20% 3399 | -9/Materials | Discovered new exit (range 7) 3616 | -9/Materials | Central database locked down 3685 | -9/Materials | Destroyed 8 combat bots 3728 | -9/Materials | Entered another Materials area 3728 | -8/Materials | Evolved 2 slots: Propulsion x1, Weapon x1 3750 | -8/Materials | Identified exit to Garrison 3750 | -8/Materials | Entered Garrison 3794 | -8/Garrison | Triggered checkpoint 3921 | -8/Garrison | Garrison Relay disabled 4079 | -8/Garrison | Triggered checkpoint 4147 | -8/Garrison | Triggered checkpoint 4163 | -8/Garrison | Triggered checkpoint 4170 | -8/Garrison | Triggered checkpoint 4207 | -8/Garrison | Destroyed 10 combat bots 4228 | -8/Garrison | Build established: Gunner 4341 | -8/Garrison | Garrison Relay disabled 4362 | -8/Garrison | Discovered new exit (range 72) 4362 | -8/Garrison | Discovered new exit (range 29) 4362 | -8/Garrison | Discovered new exit (range 39) 4420 | -8/Garrison | Installed Relay Interface Framework 4431 | -8/Garrison | Entered Materials 5466 | -8/Materials | Identified exit to Garrison 5466 | -8/Materials | Entered Garrison 5568 | -8/Garrison | Triggered checkpoint 5642 | -8/Garrison | Garrison Relay disabled 5906 | -8/Garrison | Triggered checkpoint 5933 | -8/Garrison | Build established: Gladiator 5960 | -8/Garrison | Core integrity fell below 50% 5967 | -8/Garrison | System corruption reached 10% 5989 | -8/Garrison | Destroyed 9 combat bots 6030 | -8/Garrison | Lost 9 parts (5n4w) 6121 | -8/Garrison | Garrison Relay disabled 6189 | -8/Garrison | Expanded RIF knowledge: Program Shield 6320 | -8/Garrison | Triggered checkpoint 6426 | -8/Garrison | Build established: Bothacker-Gladiator 6427 | -8/Garrison | Core integrity fell below 20% 6468 | -8/Garrison | Discovered new exit (range 5) 6563 | -8/Garrison | Spotted B-75 Beast 6613 | -8/Garrison | Lost 4 parts (1p1n2u) 6632 | -8/Garrison | Entered Factory 6632 | -7/Factory | Evolved 2 slots: Propulsion x1, Weapon x1 6971 | -7/Factory | Fabricated Huge Storage Unit (x1) 7052 | -7/Factory | Garrison activated, responded to threat 7082 | -7/Factory | Crushed by falling debris 7206 | -7/Factory | Discovered new exit (range 7) 7262 | -7/Factory | Sucked down chute 7262 | -7/Factory | Entered Waste 7262 | -7/Waste | The area was eerily silent 7273 | -7/Waste | Lost 5 parts (1p3n1u) 7352 | -7/Waste | A Compactor rumbled back to life 7362 | -7/Waste | Spotted C-40 Crusher 7409 | -7/Waste | Destroyed C-40 Crusher 7424 | -7/Waste | Found Damper Plating 7432 | -7/Waste | Discovered new exit (range 13) 7456 | -7/Waste | Found Damper Plating 7716 | -7/Waste | Build established: Scavenger-Mutant 7772 | -7/Waste | Found Prototype Launcher 7772 | -7/Waste | Identified Tesla Bomb Launcher 8186 | -7/Waste | Entered Factory 8612 | -7/Factory | Discovered new exit (range 3) 8618 | -7/Factory | Identified exit to Lower Caves 8672 | -7/Factory | Build established: Mutant 8673 | -7/Factory | Entered Lower Caves 8761 | -7/Lower Caves | Learned Factory trap positions 8862 | -7/Lower Caves | Lost 4 parts (1p1n2w) 9043 | -7/Lower Caves | Entered an active Warlord outpost 9053 | -7/Lower Caves | A Commander dispatched an escort 9216 | -7/Lower Caves | Lost 3 allies 9723 | -7/Lower Caves | Discovered new exit (range 9) 9734 | -7/Lower Caves | Ambushed by wild Derelicts 9734 | -7/Lower Caves | Identified exit to Lower Caves 9735 | -7/Lower Caves | Entered another Lower Caves area 9735 | -7/Lower Caves | Accompanied by 2 allies 9768 | -7/Lower Caves | Learned Factory emergency access door positions 10365 | -7/Lower Caves | Discovered new exit (range 3) 10367 | -7/Lower Caves | Identified exit to Data Miner 10368 | -7/Lower Caves | Entered Data Miner 10368 | -7/Data Miner | Discovered new exit (range 6) 10398 | -7/Data Miner | Met Data Miner 10425 | -7/Data Miner | Learned location of Section 7 (-2) 10425 | -7/Data Miner | Acquired the access code to Warlord's prototype stash 10463 | -7/Data Miner | Received God Mode back door access code from Data Miner 10513 | -7/Data Miner | Destroyed Data Miner 10515 | -7/Data Miner | Interfaced with the Data Conduit 10658 | -7/Data Miner | Found Exp. Thermal Shield 10772 | -7/Data Miner | Build established: Gladiator 10773 | -7/Data Miner | System corruption reached 10% 10784 | -7/Data Miner | Lost 5 parts (1p2n2w) 10788 | -7/Data Miner | Core integrity fell below 50% 10854 | -7/Data Miner | Found Prototype Hackware 10902 | -7/Data Miner | Entered Proximity Caves 10904 | -6/Proximity Caves | Greeted by an Infiltrator in a former 0b10 base 10996 | -6/Proximity Caves | Spotter reported a threat 11026 | -6/Proximity Caves | Former 0b10 base attacked by MAIN.C 11226 | -6/Proximity Caves | Destroyed 17 combat bots 11306 | -6/Proximity Caves | Destroyed 9 combat bots 11369 | -6/Proximity Caves | P-60 Hacker assimilated allied P0-28G(m) 11402 | -6/Proximity Caves | 0b10 base defense nominally successful 11923 | -6/Proximity Caves | Build established: Commander-Mutant 11941 | -6/Proximity Caves | System corruption reached 30% 12166 | -6/Proximity Caves | Spotted B-75 Beast 12314 | -6/Proximity Caves | Learned Factory stockpile data 12368 | -6/Proximity Caves | Discovered new exit (range 12) 12514 | -6/Proximity Caves | Build established: Scavenger-Mutant 12926 | -6/Proximity Caves | Build established: Scavenger-Gladiator 13107 | -6/Proximity Caves | Entered Factory 13107 | -6/Factory | Accompanied by 3 allies 13107 | -6/Factory | Evolved 2 slots: Utility x2 13108 | -6/Factory | Loaded intel: 84 trap records 13111 | -6/Factory | Loaded intel: 298 machine locations 13186 | -6/Factory | Identified exit to Garrison 13190 | -6/Factory | Entered Garrison 13190 | -6/Garrison | Accompanied by 3 allies 13191 | -6/Garrison | Loaded intel: 40 machine locations 13224 | -6/Garrison | Triggered checkpoint 13267 | -6/Garrison | Garrison Relay disabled 13363 | -6/Garrison | Expanded RIF knowledge: Coupler Efficiency 13430 | -6/Garrison | Triggered checkpoint 13510 | -6/Garrison | Destroyed 7 combat bots 13532 | -6/Garrison | Spotted B-75 Beast 13550 | -6/Garrison | Heavy support dispatched to Factory 13600 | -6/Garrison | Destroyed B-75 Beast 13726 | -6/Garrison | Discovered new exit (range 13) 13756 | -6/Garrison | Entered Factory 13757 | -6/Factory | Loaded intel: 303 machine locations 14171 | -6/Factory | Fabricated H-55 Commando (x2) 14204 | -6/Factory | Garrison activated, responded to threat 14295 | -6/Factory | Fabricated H-55 Commando (x2) 14412 | -6/Factory | Fabricated H-55 Commando (x2) 14450 | -6/Factory | Identified exit to Garrison 14453 | -6/Factory | Entered Garrison 14453 | -6/Garrison | Accompanied by 6 allies 14454 | -6/Garrison | Loaded intel: 36 machine locations 14555 | -6/Garrison | Triggered checkpoint 14580 | -6/Garrison | Garrison Relay disabled 14700 | -6/Garrison | Spotted B-75 Beast 14718 | -6/Garrison | Allies destroyed B-75 Beast 14737 | -6/Garrison | Triggered checkpoint 14745 | -6/Garrison | Triggered checkpoint 14747 | -6/Garrison | Triggered checkpoint 14753 | -6/Garrison | Lost 3 allies 14878 | -6/Garrison | Build established: Bothacker-Gladiator 14920 | -6/Garrison | Garrison Relay disabled 14945 | -6/Garrison | Triggered checkpoint 15013 | -6/Garrison | Expanded RIF knowledge: Alert ID Control 15035 | -6/Garrison | Discovered new exit (range 3) 15044 | -6/Garrison | Entered Factory 15044 | -5/Factory | Accompanied by 3 allies 15044 | -5/Factory | Evolved 2 slots: Power x1, Propulsion x1 15045 | -5/Factory | Loaded intel: 264 machine locations 15264 | -5/Factory | Discovered new exit (range 13) 15291 | -5/Factory | Manually triggered Chute Trap 15291 | -5/Factory | Sucked down chute 15291 | -5/Factory | Entered Waste 15301 | -5/Waste | 1 allies followed down the chute 15306 | -5/Waste | EMP discharged 15334 | -5/Waste | Spotted C-40 Crusher 15390 | -5/Waste | Spotted C-40 Crusher 15391 | -5/Waste | Spotted C-40 Crusher 15391 | -5/Waste | Spotted C-40 Crusher 15402 | -5/Waste | Spotted C-40 Crusher 15406 | -5/Waste | EMP discharged 15406 | -5/Waste | System corruption reached 10% 15407 | -5/Waste | Spotted C-40 Crusher 15506 | -5/Waste | EMP discharged 15606 | -5/Waste | EMP discharged 15706 | -5/Waste | EMP discharged 15727 | -5/Waste | Build established: Scavenger-Mutant 15806 | -5/Waste | EMP discharged 15817 | -5/Waste | Destroyed C-40 Crusher 15900 | -5/Waste | Destroyed C-40 Crusher 15906 | -5/Waste | EMP discharged 15941 | -5/Waste | Destroyed C-40 Crusher 15990 | -5/Waste | Destroyed C-40 Crusher 16000 | -5/Waste | Found Damper Plating 16006 | -5/Waste | EMP discharged 16027 | -5/Waste | Destroyed C-40 Crusher 16106 | -5/Waste | EMP discharged 16201 | -5/Waste | Discovered new exit (range 16) 16206 | -5/Waste | EMP discharged 16234 | -5/Waste | Destroyed C-40 Crusher 16288 | -5/Waste | Entered Factory 16289 | -5/Factory | Loaded intel: 302 machine locations 16359 | -5/Factory | Discovered new exit (range 10) 16597 | -5/Factory | Entered Extension 16598 | -5/Extension | Loaded intel: 40 machine locations 16729 | -5/Extension | Build established: Gladiator 16757 | -5/Extension | Rescued A7 16911 | -5/Extension | Rescued a captive Derelict 16938 | -5/Extension | Rescued a captive Derelict 16987 | -5/Extension | Rescued a captive Derelict 17039 | -5/Extension | Crushed by falling debris 17109 | -5/Extension | Rescued a captive Derelict 17109 | -5/Extension | Rescued a captive Derelict 17122 | -5/Extension | Rescued a captive Derelict 17160 | -5/Extension | System corruption reached 30% 17188 | -5/Extension | Spotted B-75 Beast 17196 | -5/Extension | Spotted B-75 Beast 17214 | -5/Extension | Destroyed B-75 Beast 17215 | -5/Extension | Destroyed B-75 Beast 17230 | -5/Extension | Extracted ID and sensor layout for unrecognized location from A7's data core 17260 | -5/Extension | Lost 6 allies 17266 | -5/Extension | Destroyed 7 combat bots 17464 | -5/Extension | Discovered new exit (range 10) 17474 | -5/Extension | Discovered new exit (range 6) 17490 | -5/Extension | Entered Cetus 17490 | -5/Cetus | Accompanied by 1 ally 17491 | -5/Cetus | Loaded intel: 24 machine locations 17495 | -5/Cetus | Lost 3 allies 17498 | -5/Cetus | Build established: Scavenger-Gladiator 17511 | -5/Cetus | Spotted Cetus Guard 17511 | -5/Cetus | Spotted Cetus Guard 17514 | -5/Cetus | Spotted Cetus Guard 17514 | -5/Cetus | Spotted Cetus Guard 17523 | -5/Cetus | Destroyed Cetus Guard 17523 | -5/Cetus | Destroyed Cetus Guard 17524 | -5/Cetus | Destroyed Cetus Guard 17525 | -5/Cetus | Destroyed Cetus Guard 17645 | -5/Cetus | Discovered new exit (range 16) 17673 | -5/Cetus | Spotted Cetus Guard 17673 | -5/Cetus | Spotted Cetus Guard 17676 | -5/Cetus | Spotted Cetus Guard 17676 | -5/Cetus | Spotted Cetus Guard 17700 | -5/Cetus | Discovered new exit (range 16) 17715 | -5/Cetus | Destroyed Cetus Guard 17737 | -5/Cetus | Destroyed Cetus Guard 17743 | -5/Cetus | Destroyed Cetus Guard 17745 | -5/Cetus | Met Revision 17 17768 | -5/Cetus | Lost 6 parts (1p2n3w) 18122 | -5/Cetus | Entered Archives 18123 | -5/Archives | Loaded intel: 8 machine locations 18563 | -5/Archives | Discovered new exit (range 16) 18683 | -5/Archives | Discovered new exit (range 15) 18730 | -5/Archives | Build established: Scavenger-Tank 18764 | -5/Archives | Discovered new exit (range 16) 19186 | -5/Archives | Entered Hub_04(d) 19187 | -5/Hub_04(d) | Loaded intel: 83 machine locations 19335 | -5/Hub_04(d) | Network Hub disabled 19335 | -5/Hub_04(d) | Discovered new exit (range 13) 19350 | -5/Hub_04(d) | Core integrity fell below 50% 19365 | -5/Hub_04(d) | Network Hub disabled 19367 | -5/Hub_04(d) | Core integrity fell below 20% 19368 | -5/Hub_04(d) | Entered Factory 19368 | -4/Factory | Evolved 2 slots: Utility x2 19369 | -4/Factory | Loaded intel: 263 machine locations 19396 | -4/Factory | Lost 11 parts (2p3n2u4w) 19461 | -4/Factory | Spotted B-86 Titan 19516 | -4/Factory | Destroyed B-86 Titan 19534 | -4/Factory | Lost 4 parts (1u3w) 19744 | -4/Factory | Repaired Broken Enh. Force Lance? 19882 | -4/Factory | Build established: Mutant 19959 | -4/Factory | Discovered new exit (range 12) 19998 | -4/Factory | Entered Research 19998 | -3/Research | Evolved 2 slots: Power x1, Utility x1 19999 | -3/Research | Loaded intel: 108 machine locations 20024 | -3/Research | Lost 3 parts (1n2u) 20122 | -3/Research | Spotted B-86 Titan 20198 | -3/Research | Revision forces began assault on 0b10 20224 | -3/Research | Lost 8 parts (1p5n1u1w) 20243 | -3/Research | Met up with Revision 17++ 20491 | -3/Research | Spotted B-86 Titan 20544 | -3/Research | Lost 5 allies 20698 | -3/Research | Research terminal network offline 20740 | -3/Research | Discovered new exit (range 4) 20783 | -3/Research | Identified Ghost Barrier 20792 | -3/Research | Repaired Huge Storage Unit 20923 | -3/Research | Found Hellfire Missile Launcher 20926 | -3/Research | Found Hellfire Missile Launcher 20929 | -3/Research | Found Hellfire Missile Launcher 20942 | -3/Research | Discovered new exit (range 9) 21043 | -3/Research | Identified exit to Garrison 21043 | -3/Research | Entered Garrison 21044 | -3/Garrison | Loaded intel: 36 machine locations 21080 | -3/Garrison | Found Exp. Terrain Scanner 21113 | -3/Garrison | QS Assembler disabled 21219 | -3/Garrison | Crushed by falling debris 21243 | -3/Garrison | Crushed by falling debris 21249 | -3/Garrison | Garrison Relay disabled 21295 | -3/Garrison | Expanded RIF knowledge: Code Merge 21327 | -3/Garrison | Triggered checkpoint 21448 | -3/Garrison | Discovered new exit (range 12) 21487 | -3/Garrison | Entered Research 21487 | -2/Research | Evolved 2 slots: Utility x2 21488 | -2/Research | Loaded intel: 133 machine locations 21737 | -2/Research | Lost 3 allies 21741 | -2/Research | Destroyed 7 combat bots 21772 | -2/Research | System corruption reached 10% 21796 | -2/Research | Lost 5 parts (1p1n1u2w) 21883 | -2/Research | Destroyed 7 combat bots 21893 | -2/Research | Lost 3 parts (1p1u1w) 21929 | -2/Research | Spotted B-90 Cyclops 21941 | -2/Research | Crushed by falling debris 21951 | -2/Research | Discovered new exit (range 14) 21951 | -2/Research | Spotted B-90 Cyclops 21972 | -2/Research | Entered Quarantine 21973 | -2/Quarantine | Loaded intel: 82 machine locations 21994 | -2/Quarantine | Found Alien Artifact 21995 | -2/Quarantine | Identified Core Reset Matrix 21995 | -2/Quarantine | Used Core Reset Matrix 21996 | -2/Quarantine | Lost 8 parts (2p3n2u1w) 21999 | -2/Quarantine | Detected hypermatrix surge 21999 | -2/Quarantine | Sensed 16 artifacts in vicinity 22058 | -2/Quarantine | Found Hpw. Transdimensional Reconstructor 22168 | -2/Quarantine | Found Sigix Broadsword 22200 | -2/Quarantine | Found Core Cannon 22325 | -2/Quarantine | Found Subatomic Replicator 22329 | -2/Quarantine | Used Subatomic Replicator to replicate Sigix Broadsword 22427 | -2/Quarantine | Self-destructed Last Messages --------------- 22395_ P-80 Master destroyed. 22398_ Destroyed Unknown Storage. 22398_ Thunder Leg destroyed. 22399_ Biometal Leg destroyed. 22401_ Destroyed Unknown Reactor. 22406_ System corrupted: Heat flow error (+123). 22406_ R-10 Processor collects Unknown Reactor. 22407_ P-80 Master destroyed. 22409_ R-10 Processor collects Unknown Device. 22412_ R-10 Processor collects Unknown Energy Gun. 22413_ S-43 Plague destroyed. 22415_ R-10 Processor collects Unknown Flight Unit. 22418_ R-10 Processor collects Unknown Ballistic Gun. 22418_ Kicked S-43 Plague. 22421_ Kicked S-43 Plague out of the way. 22422_ Ghost Barrier destroyed. 22426_ Sigix Broadsword destroyed. Map ----- +----------------------------------------------------+ | | | | | | | | | | | | | | | | | | | | | | | | | | | | | | | | | | | | | | | ?????????????????#############??????????????????? | | ?????????????????# #??????????????????? | | ?????????????????# " #??????????????????? | | ?????????????????# T " " #??????????????????? | | ?????????????????# """ #??????????????????? | | ?????????????????# """s""" #??????????????????? | | ?????????????????# "@"* #??????????????????? | | ?????????????????# Rss| #??????????????????? | | ???????????????#####+####!######????????????????? | | ???????????????" #????????????????? | | ???????????????" #????????????????? | | ???????????????" #????????????????? | | ???????????????#T###+####### #??????#?????????? | | ??????????????????[ ???????# #????? #?????????? | | ??????????????????? ?????# #???? #?????????? | | ????????????????????"" "???# #### #?????????? | | ??????????????????? ""S"" ## #?????????? | | ??????????????????? """" + +?????????? | | ?????????????????# ## #?????????? | | ?????????????????#############/###+####?????????? | | ?????????????????# #????????????????? | | ?????????????????? """ """ ]]] #????????????????? | | ?????????????????# """ """ ]]] #????????????????? | | ?????????????????# """ """ ]] #????????????????? | | ?????????????????# [ #????????????????? | | ?????????????????+ """ """!""" #????????######### | | ?????????????????# """ """[""" #????????# | | ?????????????????# """ """*""" #????????# """ " | | ?????????????????# #????????# " " " | | ?????????????????# ! [ #????????# "" " | | ?????????????????# #????????# "" | +----------------------------------------------------+ Best States ------------- Heat Dissipation 65 Energy Generation 59 Energy Capacity 820 Matter Stores 300 Matter Capacity 300 Sight Range 16 Robot Scan Range 15 Terrain Scan Range 30 Terrain Scan Density 10 Jamming Range 16 Armor Coverage 1825 Resistance: TH 30 Resistance: EM 90 Core Shielding 20 Propulsion Shielding 66 Melee Speed Boost 20 Evasion (%) 70 Melee Accuracy 8 Recoil Reduction 6 Offensive Hacking 12 Defensive Hacking 32 Relay Coupler Types 3 Relay Coupler Value 53 Authchip Count 3 Item Schematics ----------------- None Robot Schematics ------------------ None Fabricated ------------ Huge Storage Unit | x1 | -7/Factory H-55 Commando | x2 | -6/Factory | Authchip H-55 Commando | x2 | -6/Factory | Authchip H-55 Commando | x2 | -6/Factory | Authchip Repaired ---------- Lgt. Treads | 33% | -10/Materials Enh. Force Lance | 11% | -4/Factory | Broken Huge Storage Unit | 9% | -3/Research Studied --------- None Alien Tech Used ----------------- Core Reset Matrix Sigix Broadsword Subatomic Replicator Achievements -------------- Taming Of The Crushers Challenges ------------ None Game ------ Seed ExpertIntegratedInsulator Manual? 0 Play Time 02:45:23 Cumulative 658.7 hours Start 2026.09.22 @ 18:12:56 End 2026.09.22 @ 21:45:24 Sessions 3 Manual Loads 0 Difficulty Rogue Special Mode None Game No. 522 Rogue 522 Adventurer 0 Explorer 0 Win Type - Total 24 Types 14/0/5/1/0/0/0/2/0/2 Lore% 71 Gallery% 75 Achievement% 73 Wizard Run 0 Options --------- Layout 1 ASCII 0 Keyboard 0 Movement Mouse Keybinds 0 Fullscreen 2 Font 24/Cog Map View 25x17 Zoom Use 31% Tactical HUD 1 Map Filters NONE Filters NONE Steam 1 RUN: 338e8429-c495-4d0a-bca2-235329e69f86